Workbook

Sheet Basic_Percentages
B2: Level 4+ Maths - Percentages Created by Mr.Lafferty@mathsrevision.com
C8: Calculate the following percentages.
AZ9: =ROUND((RAND()*(949-567)+567),0) -> 857
C10: ="Q1. 10% of £"&AZ9 -> Q1. 10% of £857 | R10: £ | AZ10: =ROUND(AZ9/10,2) -> 85.7
AZ11: =ROUND((RAND()*(949-567)+567),0) -> 567
C12: ="Q2. 50% of £"&AZ11 -> Q2. 50% of £567 | R12: £ | AZ12: =ROUND(AZ11/2,2) -> 283.5
AZ13: =ROUND((RAND()*(949-567)+567),0) -> 934
C14: ="Q3. 25% of £"&AZ13 -> Q3. 25% of £934 | R14: £ | AZ14: =ROUND(AZ13/4,2) -> 233.5
AZ15: =ROUND((RAND()*(199-99)+99),0)*3 -> 465
C16: ="Q4. 33 "&BB16&" % of £"&AZ15 -> Q4. 33 ⅓ % of £465 | R16: £ | AZ16: =AZ15/3 -> 155 | BB16: ⅓
AZ17: =ROUND((RAND()*(89-69)+69),0)*5 -> 420
C18: ="Q5. 20% of £"&AZ17 -> Q5. 20% of £420 | R18: £ | AZ18: =AZ17/5 -> 84
AZ19: =ROUND((RAND()*(15-6)+6),0)*20 -> 180
C20: ="Q6. 5% of £"&AZ19 -> Q6. 5% of £180 | R20: £ | AZ20: =AZ19/20 -> 9
AZ21: =ROUND((RAND()*(19-9)+9),0)*6 -> 102 | BB21: ⅔
C22: ="Q7. 66 "&BB21&" % of £"&AZ21 -> Q7. 66 ⅔ % of £102 | R22: £ | AZ22: =AZ21/3*2 -> 68
AZ23: =ROUND((RAND()*(89-69)+69),0)*5 -> 420
C24: ="Q8. 15% of £"&AZ23 -> Q8. 15% of £420 | R24: £ | AZ24: =AZ23*0.15 -> 63
AZ25: =ROUND((RAND()*(89-69)+69),0)*5 -> 410 | BA25: =ROUND(RAND()*(9-3)+3,0) -> 9
C26: ="Q9. "&BA25&"% of £"&AZ25 -> Q9. 9% of £410 | R26: £ | AZ26: =AZ25*BA25/100 -> 36.9
AZ27: =ROUND((RAND()*(89-69)+69),0)*5 -> 365 | BA27: =ROUND(RAND()*(9-3)+3,0) -> 6
C28: ="Q10. "&BA27&"% of £"&AZ27 -> Q10. 6% of £365 | R28: £ | AZ28: =AZ27*BA27/100 -> 21.9
AZ31: =ROUND(RAND()*(2-1)+1,0)*10 -> 10
C32: ="Q11. In a sale everything is reduced by "&AZ31&"%. How much is the discount if an item is priced at £"&TEXT(AZ32,"0.00")&" before the sale." -> Q11. In a sale everything is reduced by 10%. How much is the discount if an item is priced at £79.31 before the sale. | AZ32: =ROUND(RAND()*(80.9-20.41)+20.41,2) -> 79.31
Z34: ( answer to nearest penny) | AI34: £ | AZ34: =ROUND(AZ31*AZ32/100,2) -> 7.93
AZ36: =ROUND(RAND()*(2-1)+1,0)*10 -> 20
C37: ="Q12. In a sale everything is reduced by "&AZ36&"%. What is the sale price if an item is priced at £"&TEXT(AZ37,"0.00")&" before the sale." -> Q12. In a sale everything is reduced by 20%. What is the sale price if an item is priced at £30.68 before the sale. | AZ37: =ROUND(RAND()*(80.9-20.41)+20.41,2) -> 30.68
Z39: ( answer to nearest penny) | AI39: £ | AZ39: =ROUND(AZ37-AZ36*AZ37/100,2) -> 24.54
AZ41: =ROUND(RAND()*(3-1)+1,0)*20 -> 40
C42: ="Q13. A shop had a sale that gave "&AZ41&" % off everything." -> Q13. A shop had a sale that gave 40 % off everything. | AH42: ( answer to nearest penny) | AZ42: =ROUND(RAND()*(150-20)+20,0) -> 28
E44: =" How much is the discount on an item that cost £"&AZ42&" before the sale." -> How much is the discount on an item that cost £28 before the sale. | AI44: £ | AZ44: =ROUND(AZ42*AZ41/100,2) -> 11.2
AZ46: =ROUND(RAND()*(3-1)+1,0)*20 -> 40
C47: ="Q14. A shop had a sale that gave "&AZ46&"% off everything." -> Q14. A shop had a sale that gave 40% off everything. | AI47: ( answer to nearest penny) | AZ47: =ROUND(RAND()*(50.99-20.22)+20.99,2) -> 43.44
E49: ="How much do I pay now for an item that was £"&TEXT(AZ47,"0.00")&" before the sale. " -> How much do I pay now for an item that was £43.44 before the sale. | AI49: £ | AZ49: =ROUND(AZ47-AZ47*AZ46/100,2) -> 26.06
C52: Q15. Below is Natalie's shopping list. Calculate the total bill.
T53: £
M54: Milk | S54: =ROUND(RAND()*(0.5-0.25)+0.25,1) -> 0.4
M55: Newspaper | S55: =ROUND(RAND()*(0.9-0.39)+0.39,1) -> 0.6
M56: Bread | S56: =ROUND(RAND()*(1.2-0.85)+0.85,1) -> 1
M57: Fruit | S57: =ROUND(RAND()*(1.3-0.7)+0.7,1) -> 1.2 | AZ57: =ROUND(RAND()*(2-1)+1,0)*10 -> 20
N58: Sub - Total £ | AZ58: =ROUND(SUM(S54:U57),2) -> 3.2
M59: ="Discount @"&AZ57&"%" -> Discount @20% | AZ59: =ROUND(AZ58*AZ57/100,2) -> 0.64
P60: Total | AZ60: =ROUND(AZ58-AZ59,2) -> 2.56
AZ61: =ROUND(RAND()*(2-1)+1,0)*10 -> 10
E62: ="How much change do I get from £"&AZ61&"." -> How much change do I get from £10. | R62: £ | AZ62: =ROUND(AZ61-AZ60,2) -> 7.44
C65: Q16. Below is part of a shopping list. Fill in the missing values and then calculate the total bill.
T66: £
I67: =ROUND(RAND()*(4-2)+2,0) -> 3 | J67: Tin of Beans @ | P67: =ROUND(RAND()*(0.6-0.2)+0.2,1) -> 0.3 | AZ67: =ROUND(P67*I67,2) -> 0.9
I68: =ROUND(RAND()*(6-2)+2,0) -> 6 | J68: Cans of Juice @ | P68: =ROUND(RAND()*(0.6-0.3)+0.3,1) -> 0.6 | AZ68: =ROUND(P68*I68,2) -> 3.6
I69: =ROUND(RAND()*(6-2)+2,0) -> 6 | J69: Pints of Milk @ | P69: =ROUND(RAND()*(0.6-0.3)+0.3,1) -> 0.4 | AZ69: =ROUND(P69*I69,2) -> 2.4
I70: =ROUND(RAND()*(10-2)+2,0) -> 6 | J70: Rolls @ | P70: =ROUND(RAND()*(0.2-0.1)+0.1,1) -> 0.2 | AZ70: =ROUND(P70*I70,2) -> 1.2
N71: Sub - Total £ | AZ71: =ROUND(SUM(AZ67:AZ70),2) -> 8.1 | BA71: =ROUND(RAND()*(2-1)+1,0)*10 -> 10
M72: ="Discount @"&BA71&"%" -> Discount @10% | AZ72: =ROUND(AZ71*BA71/100,2) -> 0.81
P73: Total | AZ73: =ROUND(AZ71-AZ72,2) -> 7.29
AZ74: =ROUND(RAND()*(2-1)+1,0)*10 -> 20
E75: ="How much change do I get from £"&AZ74&"." -> How much change do I get from £20. | R75: £ | AZ75: =ROUND(AZ74-AZ73,2) -> 12.71
AZ77: =ROUND(RAND()*(210-70)+70,1) -> 203.5 | BA77: =ROUND(RAND()*(5-1)+1,0)*10 -> 10
C78: ="Q17. An item has increased in value by "&BA77&"% . It was £"&TEXT(AZ77,"0.00")&". What is the new price." -> Q17. An item has increased in value by 10% . It was £203.50. What is the new price. | AF78: £ | AZ78: =ROUND(AZ77+AZ77*BA77/100,2) -> 223.85
AZ80: =ROUND(RAND()*(500-129)+129,1) -> 209.3 | BA80: =ROUND(RAND()*(5-1)+1,0)*10 -> 40
C81: ="Q18. An item has decreased in value by "&BA80&"% . It was £"&TEXT(AZ80,"0.00")&". What is the new price." -> Q18. An item has decreased in value by 40% . It was £209.30. What is the new price. | AF81: £ | AZ81: =ROUND(AZ80-AZ80*BA80/100,2) -> 125.58
AZ83: =ROUND(RAND()*(45.99-20.69)+20.69,1)*2 -> 66.2 | BA83: =ROUND(RAND()*(2-1)+1,0)*5 -> 10
C84: ="Q19. An electricity bill is £"&TEXT(AZ83,"0.00")&" + VAT @ "&BA83&"% . How much is the total cost." -> Q19. An electricity bill is £66.20 + VAT @ 10% . How much is the total cost. | AF84: £ | AZ84: =ROUND(AZ83+AZ83*BA83/100,2) -> 72.82
AZ86: =ROUNDUP(AZ84,-1) -> 80
E87: ="How much change to I get from £"&AZ86&"." -> How much change to I get from £80. | R87: £ | AZ87: =ROUND(AZ86-AZ84,2) -> 7.18
AZ89: =ROUND(RAND()*(25.99-15.69)+15.69,1)*2 -> 45.4 | BA89: =ROUND(RAND()*(2-1)+1,0)*5 -> 5
C90: ="Q20. An internet deal is £"&TEXT(AZ89,"0.00")&" + VAT @ "&BA89&"% . How much is the total cost." -> Q20. An internet deal is £45.40 + VAT @ 5% . How much is the total cost. | AF90: £ | AZ90: =ROUND(AZ89+AZ89*BA89/100,2) -> 47.67
AZ92: =ROUNDUP(AZ90,-1) -> 50
E93: ="How much change to I get from £"&AZ92&"." -> How much change to I get from £50. | R93: £ | AZ93: =ROUND(AZ92-AZ90,2) -> 2.33

Sheet Harder_Percentages
B2: Level 4+ Maths - Percentages Created by Mr.Lafferty@mathsrevision.com
C8: Calculate the following percentages to 2 decimal places.
AZ9: =ROUND((RAND()*(94-56)+56),0)*10 -> 650
C10: ="Q1. "&AY10&"% of £"&AZ9 -> Q1. 67.5% of £650 | R10: £ | AY10: =ROUND((RAND()*(17.5-1)+1),1)*5 -> 67.5 | AZ10: =ROUND(AY10/100*AZ9,2) -> 438.75
AZ11: =ROUND((RAND()*(94-56)+56),0)*10 -> 880
C12: ="Q2. "&AY12&"% of £"&AZ11 -> Q2. 35% of £880 | R12: £ | AY12: =ROUND((RAND()*(16.5-1)+1),1)*5 -> 35 | AZ12: =ROUND(AY12/100*AZ11,2) -> 308
AZ13: =ROUND((RAND()*(94-56)+56),0)*10 -> 750
C14: ="Q3. "&AY14&"% of £"&AZ13 -> Q3. 53% of £750 | R14: £ | AY14: =ROUND((RAND()*(16.5-1)+1),1)*5 -> 53 | AZ14: =ROUND(AY14/100*AZ13,2) -> 397.5
AZ15: =ROUND((RAND()*(94-56)+56),0)*10 -> 700
C16: ="Q4. "&AY16&"% of £"&AZ15 -> Q4. 78.5% of £700 | R16: £ | AY16: =ROUND((RAND()*(16.5-1)+1),1)*5 -> 78.5 | AZ16: =ROUND(AY16/100*AZ15,2) -> 549.5
AZ17: =ROUND((RAND()*(94-56)+56),0)*10 -> 770
C18: ="Q5. "&AY18&"% of £"&AZ17 -> Q5. 28.5% of £770 | R18: £ | AY18: =ROUND((RAND()*(16.5-1)+1),1)*5 -> 28.5 | AZ18: =ROUND(AY18/100*AZ17,2) -> 219.45
AZ21: =ROUND((RAND()*(7.5-1)+1),1)*5 -> 34
C22: ="Q6. In a sale everything is reduced by "&AZ21&"% ." -> Q6. In a sale everything is reduced by 34% . | AZ22: =ROUND(RAND()*(800-20)+20,0) -> 697
E23: ="How much is the discount if an item is priced at £"&AZ22&" before the sale." -> How much is the discount if an item is priced at £697 before the sale.
Z24: ( answer to nearest penny) | AI24: £ | AZ24: =ROUND(AZ22*AZ21/100,2) -> 236.98
AZ26: =ROUND((RAND()*(7.5-1)+1),1)*5 -> 23
C27: ="Q7. In a sale everything is reduced by "&AZ26&"%." -> Q7. In a sale everything is reduced by 23%. | AZ27: =ROUND(RAND()*(800-20)+20,0) -> 296
E28: ="What is the sale price if an item is priced at £"&AZ27&" before the sale." -> What is the sale price if an item is priced at £296 before the sale.
Z29: ( answer to nearest penny) | AI29: £ | AZ29: =ROUND(AZ27-AZ27*AZ26/100,2) -> 227.92
AZ31: =ROUND((RAND()*(7.5-1)+1),1)*5 -> 17
C32: ="Q8. A shop had a sale that gave "&AZ31&"% off everything." -> Q8. A shop had a sale that gave 17% off everything. | AH32: ( answer to nearest penny) | AZ32: =ROUND(RAND()*(7800-1000)+1000,-2) -> 5400
E34: =" How much is the discount on an item that cost £"&AZ32&" before the sale." -> How much is the discount on an item that cost £5400 before the sale. | AI34: £ | AZ34: =ROUND(AZ32*AZ31/100,2) -> 918
AZ36: =ROUND((RAND()*(7.5-1)+1),1)*5 -> 6.5
C37: ="Q9. A shop had a sale that gave "&AZ36&"% off everything." -> Q9. A shop had a sale that gave 6.5% off everything. | AH37: ( answer to nearest penny) | AZ37: =ROUND(RAND()*(5800-2000)+2000,-2) -> 3200
E39: =" How much do I pay now for an item that was £"&AZ37&" before the sale." -> How much do I pay now for an item that was £3200 before the sale. | AI39: £ | AZ39: =ROUND(AZ37-AZ37*AZ36/100,2) -> 2992
